Workbook

Sheet Contents
C2: TAF calculation model
A4: Information
A6: Title | B6: TAF Calculation model
A7: Objective | B7: Calculate Tax Adjustment Factor (TAF) for derivation of ALFs
A8: Confidentiality | B8: Non-confidential Ofcom model
A10: Contents
A12: Worksheet | B12: Description
A13: TAF calculation | B13: Calculation of TAF
A14: Average tax rate | B14: Calculates the average tax rate that produces the same TAF as that calculated in "TAF calculation" sheet
A16: Terms and conditions
A18: The terms and conditions on which OFCOM is making available this model are set out below. The TAF calculation model ('the Model') has been developed to estimate the tax adjustment factor used as an input to estimating ALFs. The Model is provided as part of the explanation of OFCOM’s proposals in its consultation “Review of Annual Licence Fees”, dated 13 December 2024. While you may freely use the Model for the purposes for which it is provided, as set out in any accompanying model documentation, OFCOM does not guarantee that the Model will function when used in any modified way. No representation or warranty is given as to the accuracy, completeness or correctness of the provided Model and it is provided 'as is'. It is provided without any representation or endorsement made and without warranty of any kind, whether express or implied, including but not limited to the implied warranties of satisfactory quality, fitness for a particular purpose, non-infringement, compatibility, security and accuracy. OFCOM does not accept any responsibility for any loss, disruption or damage to your data or your computer system which may occur whilst using the Model or material derived from the Model. OFCOM does not warrant that the functions contained in the Model will be uninterrupted or error free. Also, OFCOM does not warrant that defects will be corrected, or that the Model provided is free of viruses. In no event will OFCOM be liable for any loss or damage including, without limitation, indirect or consequential loss or damage, or any loss or damages whatsoever arising from use or loss of use of, data or profits arising out of or in connection with the use or otherwise of the provided Model. By using the Model, you agree to the above.

Sheet Styles
A5: Styles
B8: Input data | C8: 100 | E8: Input data (e.g. RFS data, inflation, etc)
B10: Input assumption or parameter | C10: 100 | E10: Input assumptions or parameters (e.g. for a scenario or control sheet)
B12: Feed internal | C12: 100 | E12: Feed cell from within this workbook
B14: Feed external | C14: 100 | E14: Feed cell from a different workbook
B16: Confidential | C16: 100 | E16: Confidential data, to be removed or randomized before publication
B18: Randomized | C18: 100 | E18: Randomized data
B20: Calculation | C20: 100 | E20: Intermediate calculation (not final output)
B22: Model logic | C22: 100 | E22: Cells required for model logic (e.g. year counters)
B24: Intentionally blank | E24: Cells left intentionally blank
B26: Output | C26: 100 | E26: A key result from this part of the model (in particular one that will be used elsewhere in the model)
B28: Highlight | C28: 100 | E28: A cell that is highlighted for uncertainty
B30: QA highlight | C30: 100 | E30: A cell that is highlighted for quality assurance
B32: Check pass | C32: TRUE | E32: A side calculation intended solely to cross check a result (and which therefore should not be referenced anywhere else in the model)
B33: Check fail | C33: FALSE
B35: Note or source | C35: Text | E35: Note/source
B37: Named range | E37: Cells which are part of a named range
B39: Name | C39: named_range_1 | E39: An Excel Name applying to one or more adjacent cells (use Insert Name Create to actually create the Excel Names)
B41: Un-format | E41: Going back to default Excel formatting

Sheet TAF calculation
A1: Calculation of tax adjustment factor for ALF
A3: Input assumptions
C4: Year 1 | D4: Year 2 | E4: Year 3 | F4: Year 4 | G4: Year 5 | H4: Year 6 | I4: Year 7 | J4: Year 8 | K4: Year 9 | L4: Year 10 | M4: Year 11 | N4: Year 12 | O4: Year 13 | P4: Year 14 | Q4: Year 15 | R4: Year 16 | S4: Year 17 | T4: Year 18 | U4: Year 19 | V4: Year 20
A5: Real post tax discount rate | B5: 0.017
A6: Main corporate tax rate | C6: 0.25 | D6: 0.25 | E6: 0.25 | F6: 0.25 | G6: 0.25 | H6: 0.25 | I6: 0.25 | J6: 0.25 | K6: 0.25 | L6: 0.25 | M6: 0.25 | N6: 0.25 | O6: 0.25 | P6: 0.25 | Q6: 0.25 | R6: 0.25 | S6: 0.25 | T6: 0.25 | U6: 0.25 | V6: 0.25
A7: Duration of ALF calculation of 20 years | B7: 20
A8: Annual inflation assumption | B8: 0.02
A9: Inflation index | C9: 1 | D9: =C9*(1+$B$8) -> 1.02 | E9: 1.0404 | F9: 1.061208 | G9: 1.08243216 | H9: 1.104080803 | I9: 1.126162419 | J9: 1.148685668 | K9: 1.171659381 | L9: 1.195092569 | M9: 1.21899442 | N9: 1.243374308 | O9: 1.268241795 | P9: 1.29360663 | Q9: 1.319478763 | R9: 1.345868338 | S9: 1.372785705 | T9: 1.400241419 | U9: 1.428246248 | V9: 1.456811173
A11: All in real terms. Payments assumed to occur at the beginning of the year.
A13: Run macro to calculate Tax Adjustment Factor if necessary
A15: =IF(ROUND(Check_TAF,5)=0,"Currently no need to run macro","NEED TO RUN MACRO") -> Currently no need to run macro
A18: This macro iteratively calculates the Tax Adjustment Factor, which reflect the more advantageous tax treatment of ALF compared to lump sum payments.
A19: The macro hard codes the ALF figure assumed in the calculation of the tax adjustment factor.
A21: Calculation of Tax Adjustment Factor
B22: PV | C22: Year 1 | D22: Year 2 | E22: Year 3 | F22: Year 4 | G22: Year 5 | H22: Year 6 | I22: Year 7 | J22: Year 8 | K22: Year 9 | L22: Year 10 | M22: Year 11 | N22: Year 12 | O22: Year 13 | P22: Year 14 | Q22: Year 15 | R22: Year 16 | S22: Year 17 | T22: Year 18 | U22: Year 19 | V22: Year 20
A23: Lump sum assumed for tax adjustment factor calculation | B23: 100
A24: Lump sum value amortised (falls over time with inflation) | B24: =NPV($B$5,D24:V24)+C24 -> 72.1787781 | C24: =($B$23/$B$7)/C$9 -> 5 | D24: 4.901960784 | E24: 4.805843906 | F24: 4.711611673 | G24: 4.61922713 | H24: 4.528654049 | I24: 4.439856911 | J24: 4.352800893 | K24: 4.267451856 | L24: 4.183776329 | M24: 4.101741499 | N24: 4.021315195 | O24: 3.942465878 | P24: 3.865162625 | Q24: 3.789375123 | R24: 3.71507365 | S24: 3.642229069 | T24: 3.570812812 | U24: 3.500796875 | V24: 3.432153799
A25: Tax benefits of amortisation of lump sum payment | B25: =NPV($B$5,D25:V25)+C25 -> 18.04469452 | C25: =C24*C$6 -> 1.25 | D25: 1.225490196 | E25: 1.201460977 | F25: 1.177902918 | G25: 1.154806783 | H25: 1.132163512 | I25: 1.109964228 | J25: 1.088200223 | K25: 1.066862964 | L25: 1.045944082 | M25: 1.025435375 | N25: 1.005328799 | O25: 0.9856164695 | P25: 0.9662906564 | Q25: 0.9473437807 | R25: 0.9287684125 | S25: 0.9105572671 | T25: 0.8927032031 | U25: 0.8751992187 | V25: 0.8580384497
A27: =A23 -> Lump sum assumed for tax adjustment factor calculation | B27: =B23 -> 100
A28: Tax benefits for annual licence fees | B28: =NPV($B$5,D28:V28)+C28 -> 27.31843516 | C28: =C30*C$6 -> 1.595604038 | D28: 1.595604038 | E28: 1.595604038 | F28: 1.595604038 | G28: 1.595604038 | H28: 1.595604038 | I28: 1.595604038 | J28: 1.595604038 | K28: 1.595604038 | L28: 1.595604038 | M28: 1.595604038 | N28: 1.595604038 | O28: 1.595604038 | P28: 1.595604038 | Q28: 1.595604038 | R28: 1.595604038 | S28: 1.595604038 | T28: 1.595604038 | U28: 1.595604038 | V28: 1.595604038
A29: less Tax benefits of amortisation of lump sum payment | B29: =-B25 -> -18.04469452
A30: Annual licence fee | B30: =NPV($B$5,D30:V30)+C30 -> 109.2737406 | C30: 6.38241615 | D30: =ALF_for_TAF_calc -> 6.38241615 | E30: 6.38241615 | F30: 6.38241615 | G30: 6.38241615 | H30: 6.38241615 | I30: 6.38241615 | J30: 6.38241615 | K30: 6.38241615 | L30: 6.38241615 | M30: 6.38241615 | N30: 6.38241615 | O30: 6.38241615 | P30: 6.38241615 | Q30: 6.38241615 | R30: 6.38241615 | S30: 6.38241615 | T30: 6.38241615 | U30: 6.38241615 | V30: 6.38241615
A31: Tax Adjustment Factor | B31: =1+(B28+B29)/B27 -> 1.092737406
A32: Check=0 | B32: =SUM(B27:B29)-B30 -> 0

Sheet Average Tax rate
A1: Calculation of Average Tax rate
A4: Run macro to calculate Average Tax rate if necessary
A6: =IF(ROUND(Check_Tax,5)=0,"Currently no need to run macro","NEED TO RUN MACRO") -> Currently no need to run macro
A9: Input assumptions
A11: Real post tax discount rate | B11: ='TAF calculation'!B5 -> 0.017
A12: Average corporate tax rate | B12: 0.2500000106
A13: ALF annuity period (years) | B13: ='TAF calculation'!B7 -> 20
A14: Annual inflation assumption | B14: ='TAF calculation'!B8 -> 0.02
C16: Year 1 | D16: Year 2 | E16: Year 3 | F16: Year 4 | G16: Year 5 | H16: Year 6 | I16: Year 7 | J16: Year 8 | K16: Year 9 | L16: Year 10 | M16: Year 11 | N16: Year 12 | O16: Year 13 | P16: Year 14 | Q16: Year 15 | R16: Year 16 | S16: Year 17 | T16: Year 18 | U16: Year 19 | V16: Year 20
A17: Inflation index | C17: 1 | D17: =C17*(1+$B$14) -> 1.02 | E17: =D17*(1+$B$14) -> 1.0404 | F17: 1.061208 | G17: 1.08243216 | H17: 1.104080803 | I17: 1.126162419 | J17: 1.148685668 | K17: 1.171659381 | L17: 1.195092569 | M17: 1.21899442 | N17: 1.243374308 | O17: 1.268241795 | P17: 1.29360663 | Q17: 1.319478763 | R17: 1.345868338 | S17: 1.372785705 | T17: 1.400241419 | U17: 1.428246248 | V17: 1.456811173
A19: Post tax NPV of lump sum payment (where lump sum payment = 100 in arbitary units)
B20: PV | C20: Year 1 | D20: Year 2 | E20: Year 3 | F20: Year 4 | G20: Year 5 | H20: Year 6 | I20: Year 7 | J20: Year 8 | K20: Year 9 | L20: Year 10 | M20: Year 11 | N20: Year 12 | O20: Year 13 | P20: Year 14 | Q20: Year 15 | R20: Year 16 | S20: Year 17 | T20: Year 18 | U20: Year 19 | V20: Year 20
A21: Lump sum assumed for tax adjustment factor calculation | B21: 100
A22: Amortisation of lump sum (falls over time with inflation) | C22: =($B$21/$B$13)/C$17 -> 5 | D22: =($B$21/$B$13)/D$17 -> 4.901960784 | E22: 4.805843906 | F22: 4.711611673 | G22: 4.61922713 | H22: 4.528654049 | I22: 4.439856911 | J22: 4.352800893 | K22: 4.267451856 | L22: 4.183776329 | M22: 4.101741499 | N22: 4.021315195 | O22: 3.942465878 | P22: 3.865162625 | Q22: 3.789375123 | R22: 3.71507365 | S22: 3.642229069 | T22: 3.570812812 | U22: 3.500796875 | V22: 3.432153799
A23: PV of amortised lump sum | B23: =NPV($B$11,D22:V22)+C22 -> 72.1787781
A24: PV of tax benefits of amortisation of lump sum payment | B24: =B23*B12 -> 18.04469529
A25: lump sum payment, net of PV of tax benefit | B25: =B21-B24 -> 81.95530471
A28: Tax Adjustment Factor (TAF) | B28: =B25/(B21*(1-B12)) -> 1.092737412
A29: Check=0 | B29: =B28-TAF -> 5.229641831e-09
